fUSD/lending_fUSD_20240606
["ID","MTS","AMOUNT","RATE_DAILY","PERIOD"]
[328672660,1717690239168,-500.0,0.00027397,4]
[328672661,1717690239179,-620.2,0.00027397,4]
[328672662,1717690239189,-500.0,0.00027397,4]
[328672663,1717690239199,-500.0,0.00027397,4]
[328672664,1717690239208,-784.1,0.00027397,4]
[328672665,1717690239218,-500.0,0.00027397,4]
[328672666,1717690239229,-515.35,0.00027397,4]
[328672667,1717690239239,-500.0,0.00027397,4]
[328672668,1717690239249,-684.27,0.00027397,4]
[328672669,1717690239260,-500.0,0.00027397,4]
[328672670,1717690239271,-600.8,0.00027397,4]
[328672671,1717690239281,-500.0,0.00027397,4]
[328672672,1717690239292,-366.48726106,0.00027397,4]
[328672673,1717690239301,-500.0,0.00027397,4]
[328672674,1717690239312,-500.0,0.00027397,4]
[328672675,1717690239322,-426.14,0.00027397,4]
[328672676,1717690239332,-653.12,0.00027397,4]
[328672677,1717690239342,-556.96,0.00027397,4]
[328672678,1717690239352,-561.97787594,0.00027397,4]
[328672679,1717690239362,-500.0,0.00027397,4]
[328672680,1717690239371,-500.0,0.00027397,4]
[328672681,1717690239381,-500.0,0.00027397,4]
[328672682,1717690239391,-500.0,0.00027397,4]
[328672683,1717690239401,-500.0,0.00027397,4]
[328672684,1717690239411,-2244.92,0.00027397,4]
[328672685,1717690239420,-855.12,0.00027397,4]
[328672686,1717690239430,-500.0,0.00027397,4]
[328672687,1717690239440,-2461.31,0.00027397,4]
[328672688,1717690239449,-500.0,0.00027397,4]
[328672689,1717690239458,-500.0,0.00027397,4]
[328672690,1717690239468,-500.0,0.00027397,4]
[328672691,1717690239478,-1765.26,0.00027397,4]
[328672692,1717690239488,-500.0,0.00027397,4]
[328672693,1717690239497,-610.02233275,0.00027397,4]
[328672694,1717690239507,-959.41,0.00027397,4]
[328672695,1717690239517,-1577.26,0.00027397,4]
[328672696,1717690239526,-565.64,0.00027397,4]
[328672697,1717690239536,-500.0,0.00027397,4]
[328672698,1717690239546,-500.0,0.00027397,4]
[328672699,1717690239556,-533.1611397,0.00027397,4]
[328672700,1717690239569,-500.0,0.00027397,4]
[328672701,1717690239580,-500.0,0.00027397,4]
[328672702,1717690239590,-500.0,0.00027397,4]
[328672703,1717690239599,-1341.75,0.00027397,10]
[328672704,1717690239609,-1118.12,0.00027397,10]
[328672705,1717690239619,-269.66,0.00027477,2]
[328672706,1717690239628,-500.0,0.00027671,4]
[328672707,1717690239638,-500.0,0.00027671,4]
[328672708,1717690239648,-500.0,0.00027671,2]
[328672709,1717690239658,-500.0,0.00027671,4]
[328672710,1717690239668,-500.0,0.00027671,4]
[328672711,1717690239681,-500.0,0.00027671,4]
[328672712,1717690239691,-500.0,0.00027671,4]
[328672713,1717690239704,-500.0,0.00027671,4]
[328672714,1717690239714,-500.0,0.00027671,4]
[328672715,1717690239727,-500.0,0.00027671,4]
[328672716,1717690239737,-500.0,0.00027671,4]
[328672717,1717690239746,-544.40052578,0.00027671,4]
[328672718,1717690239757,-500.0,0.00027671,4]
[328672719,1717690239767,-500.0,0.00027671,4]
[328672720,1717690239776,-500.0,0.00027671,4]
[328672721,1717690239786,-520.76,0.00027671,4]
[328672722,1717690239796,-622.80005184,0.00027671,4]
[328672723,1717690239805,-500.0,0.00027671,4]
[328672724,1717690239815,-223.88550535,0.00027671,4]
[328672725,1717690239825,-534.58,0.00027671,4]
[328672726,1717690239834,-500.0,0.00027671,4]
[328672727,1717690239844,-500.0,0.00027671,4]
[328672728,1717690239853,-500.0,0.00027671,4]
[328672729,1717690239864,-500.0,0.00027671,4]
[328672730,1717690239874,-258.52008431,0.00027671,4]
[328672731,1717690239884,-513.77,0.00027671,4]
[328672732,1717690239893,-500.0,0.00027671,4]
[328672733,1717690239903,-500.0,0.00027671,4]
[328672734,1717690239912,-500.0,0.00027671,4]
[328672735,1717690239922,-500.0,0.00027671,4]
[328672736,1717690239931,-500.0,0.00027671,4]
[328672737,1717690239940,-500.0,0.00027671,4]
[328672738,1717690239950,-500.0,0.00027671,4]
[328672739,1717690239960,-588.58,0.00027671,4]
[328672740,1717690239969,-500.0,0.00027671,4]
[328672741,1717690239978,-430.01127769,0.00027671,4]
[328672742,1717690239988,-711.28,0.00027671,4]
[328672743,1717690239997,-941.68,0.00027671,4]
[328672745,1717690240006,-510.4,0.00027671,4]
[328672746,1717690240016,-500.0,0.00027671,4]
[328672747,1717690240025,-813.72,0.00027671,4]
[328672748,1717690240035,-735.93,0.00027671,4]
[328672749,1717690240044,-503.62,0.00027671,4]
[328672750,1717690240054,-500.0,0.00027671,4]
[328672751,1717690240064,-500.0,0.00027671,4]
[328672753,1717690240073,-500.0,0.00027671,4]
[328672754,1717690240083,-500.0,0.00027671,4]
[328672755,1717690240093,-500.0,0.00027671,4]
[328672756,1717690240103,-500.0,0.00027671,4]
[328672757,1717690240112,-500.0,0.00027671,4]
[328672758,1717690240122,-500.0,0.00027671,4]
[328672759,1717690240132,-724.47,0.00027671,4]
[328672760,1717690240141,-422.87807846,0.00027671,4]
[328672761,1717690240151,-500.0,0.00027671,4]
[328672762,1717690240160,-500.0,0.00027671,4]
[328672763,1717690240170,-405.53574059,0.00027671,4]
[328672764,1717690240180,-500.0,0.00027671,4]
[328672765,1717690240189,-500.0,0.00027671,4]
[328672766,1717690240199,-500.0,0.00027671,4]
[328672767,1717690240208,-990.45,0.00027671,4]
[328672768,1717690240217,-500.0,0.00027671,4]
[328672769,1717690240227,-1073.26,0.00027671,4]
[328672770,1717690240236,-500.0,0.00027671,4]
[328672771,1717690240246,-500.0,0.00027671,4]
[328672772,1717690240255,-500.0,0.00027671,4]
[328672773,1717690240265,-606.04,0.00027671,4]
[328672774,1717690240274,-1067.38,0.00027671,4]
[328672775,1717690240283,-500.0,0.00027671,4]
[328672776,1717690240292,-884.85,0.00027671,4]
[328672777,1717690240302,-1056.24,0.00027671,4]
[328672778,1717690240312,-581.85,0.00027671,4]
[328672779,1717690240322,-500.0,0.00027671,4]
[328672780,1717690240332,-751.58,0.00027671,4]
[328672781,1717690240341,-500.0,0.00027671,4]
[328672782,1717690240351,-500.0,0.00027671,4]
[328672783,1717690240360,-1025.31,0.00027671,4]
[328672784,1717690240369,-500.0,0.00027671,4]
[328672785,1717690240378,-620.2,0.00027671,4]
[328672786,1717690240388,-500.0,0.00027671,4]
[328672787,1717690240398,-500.0,0.00027671,4]
[328672788,1717690240408,-784.1,0.00027671,4]
[328672789,1717690240417,-500.0,0.00027671,4]
[328672790,1717690240427,-515.35,0.00027671,4]
[328672791,1717690240436,-500.0,0.00027671,4]
[328672792,1717690240445,-684.27,0.00027671,4]
[328672793,1717690240456,-500.0,0.00027671,4]
[328672794,1717690240465,-600.8,0.00027671,4]
[328672795,1717690240475,-500.0,0.00027671,4]
[328672796,1717690240485,-500.0,0.00027671,4]
[328672797,1717690240494,-500.0,0.00027671,4]
[328672798,1717690240503,-556.96,0.00027671,4]
[328672799,1717690240513,-653.12,0.00027671,4]
[328672800,1717690240522,-500.0,0.00027671,4]
[328672801,1717690240531,-500.0,0.00027671,4]
[328672802,1717690240540,-500.0,0.00027671,4]
[328672803,1717690240550,-500.0,0.00027671,4]
[328672804,1717690240560,-2244.92,0.00027671,4]
[328672805,1717690240569,-855.12,0.00027671,4]
[328672806,1717690240579,-2461.31,0.00027671,4]
[328672807,1717690240588,-500.0,0.00027671,4]
[328672808,1717690240598,-500.0,0.00027671,4]
[328672809,1717690240607,-500.0,0.00027671,4]
[328672810,1717690240616,-1765.26,0.00027671,4]
[328672811,1717690240626,-500.0,0.00027671,4]
[328672812,1717690240636,-959.41,0.00027671,4]
[328672813,1717690240645,-1577.26,0.00027671,4]
[328672814,1717690240655,-565.64,0.00027671,4]
[328672815,1717690240664,-500.0,0.00027671,4]
[328672816,1717690240675,-500.0,0.00027671,4]
[328672817,1717690240688,-500.0,0.00027671,4]
[328672818,1717690240699,-500.0,0.00027671,4]
[328672819,1717690240708,-500.0,0.00027671,4]
[328672820,1717690240719,-693.12,0.0002789,2]
[328672821,1717690240728,-151.86,0.00027935,2]
[328672822,1717690240738,-500.0,0.00027945,4]
[328672823,1717690240747,-500.0,0.00027945,4]
[328672824,1717690240756,-500.0,0.00027945,2]
[328672825,1717690240765,-500.0,0.00027945,4]
[328672826,1717690240775,-500.0,0.00027945,4]
[328672827,1717690240784,-500.0,0.00027945,4]
[328672828,1717690240793,-500.0,0.00027945,4]
[328672829,1717690240803,-500.0,0.00027945,4]
[328672830,1717690240812,-500.0,0.00027945,4]
[328672831,1717690240821,-500.0,0.00027945,4]
[328672832,1717690240830,-500.0,0.00027945,4]
[328672833,1717690240840,-531.34624979,0.00027945,4]
[328672834,1717690240850,-500.0,0.00027945,4]
[328672835,1717690240859,-534.58,0.00027945,4]
[328672836,1717690240869,-500.0,0.00027945,4]
[328672837,1717690240879,-500.0,0.00027945,4]
[328672838,1717690240889,-500.0,0.00027945,4]
[328672839,1717690240898,-513.77,0.00027945,4]
[328672840,1717690240907,-500.0,0.00027945,4]
[328672841,1717690240916,-500.0,0.00027945,4]
[328672842,1717690240926,-500.0,0.00027945,4]
[328672843,1717690240935,-500.0,0.00027945,4]
[328672844,1717690240944,-500.0,0.00027945,4]
[328672845,1717690240956,-500.0,0.00027945,4]
[328672846,1717690240965,-500.0,0.00027945,4]
[328672847,1717690240974,-588.58,0.00027945,4]
[328672848,1717690240983,-500.0,0.00027945,4]
[328672849,1717690240993,-711.28,0.00027945,4]
[328672850,1717690241002,-941.68,0.00027945,4]
[328672851,1717690241011,-510.4,0.00027945,4]
[328672852,1717690241021,-500.0,0.00027945,4]
[328672853,1717690241031,-813.72,0.00027945,4]
[328672854,1717690241040,-735.93,0.00027945,4]
[328672855,1717690241050,-503.62,0.00027945,4]
[328672856,1717690241060,-500.0,0.00027945,4]
[328672857,1717690241069,-500.0,0.00027945,4]
[328672858,1717690241079,-500.0,0.00027945,4]
[328672859,1717690241088,-500.0,0.00027945,4]
[328672860,1717690241098,-500.0,0.00027945,4]
[328672861,1717690241107,-500.0,0.00027945,4]
[328672862,1717690241117,-500.0,0.00027945,4]
[328672863,1717690241126,-500.0,0.00027945,4]
[328672864,1717690241135,-724.47,0.00027945,4]
[328672865,1717690241145,-500.0,0.00027945,4]
[328672866,1717690241154,-500.0,0.00027945,4]
[328672867,1717690241164,-218.41924175,0.00027945,4]
[328672868,1717690241174,-500.0,0.00027945,4]
[328672869,1717690241184,-500.0,0.00027945,4]
[328672870,1717690241193,-990.45,0.00027945,4]
[328672871,1717690241204,-500.0,0.00027945,4]
[328672872,1717690241213,-1073.26,0.00027945,4]
[328672873,1717690241223,-500.0,0.00027945,4]
[328672874,1717690241232,-500.0,0.00027945,4]
[328672875,1717690241241,-500.0,0.00027945,4]
[328672876,1717690241251,-606.04,0.00027945,4]
[328672877,1717690241260,-1067.38,0.00027945,4]
[328672878,1717690241270,-500.0,0.00027945,4]
[328672879,1717690241280,-884.85,0.00027945,4]
[328672880,1717690241290,-1056.24,0.00027945,4]
[328672881,1717690241299,-581.85,0.00027945,4]
[328672882,1717690241310,-500.0,0.00027945,4]
[328672883,1717690241320,-751.58,0.00027945,4]
[328672884,1717690241329,-500.0,0.00027945,4]
[328672885,1717690241339,-500.0,0.00027945,4]
[328672886,1717690241349,-1025.31,0.00027945,4]
[328672887,1717690241358,-578.27236874,0.00027945,4]
[328672888,1717690241369,-620.2,0.00027945,4]
[328672889,1717690241379,-500.0,0.00027945,4]
[328672890,1717690241389,-500.0,0.00027945,4]
[328672891,1717690241399,-784.1,0.00027945,4]
[328672892,1717690241409,-500.0,0.00027945,4]
[328672893,1717690241418,-515.35,0.00027945,4]
[328672894,1717690241428,-500.0,0.00027945,4]
[328672895,1717690241438,-684.27,0.00027945,4]
[328672896,1717690241447,-500.0,0.00027945,4]
[328672897,1717690241459,-600.8,0.00027945,4]
[328672898,1717690241469,-500.0,0.00027945,4]
[328672899,1717690241479,-500.0,0.00027945,4]
[328672900,1717690241490,-556.96,0.00027945,4]
[328672901,1717690241500,-653.12,0.00027945,4]
[328672902,1717690241509,-494.78045332,0.00027945,4]
[328672903,1717690241520,-500.0,0.00027945,4]
[328672904,1717690241530,-500.0,0.00027945,4]
[328672905,1717690241540,-500.0,0.00027945,4]
[328672906,1717690241549,-2244.92,0.00027945,4]
[328672907,1717690241559,-855.12,0.00027945,4]
[328672908,1717690241569,-2461.31,0.00027945,4]
[328672909,1717690241578,-500.0,0.00027945,4]
[328672910,1717690241587,-500.0,0.00027945,4]
[328672911,1717690241597,-500.0,0.00027945,4]
[328672912,1717690241608,-1765.26,0.00027945,4]
[328672913,1717690241617,-500.0,0.00027945,4]
[328672914,1717690241627,-959.41,0.00027945,4]
[328672915,1717690241637,-1577.26,0.00027945,4]
[328672916,1717690241647,-565.64,0.00027945,4]
[328672917,1717690241656,-500.0,0.00027945,4]
[328672918,1717690241666,-500.0,0.00027945,4]
[328672919,1717690241679,-500.0,0.00027945,4]
[328672920,1717690241691,-500.0,0.00027945,4]
[328672921,1717690241700,-605.70877128,0.00027945,4]
[328672922,1717690241710,-1000.0,0.00028049,2]
[328672923,1717690241722,-1877.05611359,0.00028122,2]
[328672924,1717690241731,-500.0,0.00028219,4]
[328672925,1717690241741,-500.0,0.00028219,4]
[328672926,1717690241751,-500.0,0.00028219,2]
[328672927,1717690241764,-642.03118537,0.00028219,4]
[328672928,1717690241773,-500.0,0.00028219,4]
[328672929,1717690241783,-500.0,0.00028219,4]
[328672930,1717690241792,-500.0,0.00028219,4]
[328672931,1717690241801,-500.0,0.00028219,4]
[328672932,1717690241811,-500.0,0.00028219,4]
[328672933,1717690241821,-152.1195732,0.00028219,4]
[328672934,1717690241831,-500.0,0.00028219,4]
[328672935,1717690241840,-500.0,0.00028219,4]
[328672936,1717690241850,-534.58,0.00028219,4]
[328672937,1717690241859,-500.0,0.00028219,4]
[328672938,1717690241869,-500.0,0.00028219,4]
[328672939,1717690241879,-599.15569756,0.00028219,4]
[328672940,1717690241888,-513.77,0.00028219,4]
[328672941,1717690241897,-500.0,0.00028219,4]
[328672942,1717690241906,-500.0,0.00028219,4]
[328672943,1717690241915,-500.0,0.00028219,4]
[328672944,1717690241925,-500.0,0.00028219,4]
[328672945,1717690241934,-500.0,0.00028219,4]
[328672946,1717690241943,-500.0,0.00028219,4]
[328672947,1717690241956,-500.0,0.00028219,4]
[328672948,1717690241966,-588.58,0.00028219,4]
[328672949,1717690241975,-500.0,0.00028219,4]
[328672950,1717690241984,-711.28,0.00028219,4]
[328672951,1717690241993,-941.68,0.00028219,4]
[328672952,1717690242002,-510.4,0.00028219,4]
[328672953,1717690242011,-500.0,0.00028219,4]
[328672954,1717690242021,-813.72,0.00028219,4]
[328672955,1717690242031,-735.93,0.00028219,4]
[328672956,1717690242041,-503.62,0.00028219,4]
[328672957,1717690242050,-500.0,0.00028219,4]
[328672958,1717690242059,-495.63,0.00028219,4]
[328672959,1717690242068,-500.0,0.00028219,4]
[328672960,1717690242077,-500.0,0.00028219,4]
[328672961,1717690242087,-500.0,0.00028219,4]
[328672962,1717690242096,-500.0,0.00028219,4]
[328672963,1717690242105,-500.0,0.00028219,4]
[328672964,1717690242114,-500.0,0.00028219,4]
[328672965,1717690242123,-724.47,0.00028219,4]
[328672966,1717690242132,-500.0,0.00028219,4]
[328672967,1717690242141,-500.0,0.00028219,4]
[328672968,1717690242152,-500.0,0.00028219,4]
[328672969,1717690242161,-500.0,0.00028219,4]
[328672970,1717690242170,-990.45,0.00028219,4]
[328672971,1717690242180,-500.0,0.00028219,4]
[328672972,1717690242189,-1073.26,0.00028219,4]
[328672973,1717690242199,-500.0,0.00028219,4]
[328672974,1717690242349,-500.0,0.00028219,4]
[328672975,1717690242359,-500.0,0.00028219,4]
[328672976,1717690242368,-606.04,0.00028219,4]
[328672977,1717690242378,-1067.38,0.00028219,4]
[328672978,1717690242387,-500.0,0.00028219,4]
[328672979,1717690242397,-884.85,0.00028219,4]
[328672980,1717690242406,-1056.24,0.00028219,4]
[328672981,1717690242416,-581.85,0.00028219,4]
[328672982,1717690242425,-500.0,0.00028219,4]
[328672983,1717690242435,-751.58,0.00028219,4]
[328672984,1717690242445,-500.0,0.00028219,4]
[328672985,1717690242456,-500.0,0.00028219,4]
[328672986,1717690242466,-1025.31,0.00028219,4]
[328672987,1717690242475,-620.2,0.00028219,4]
[328672988,1717690242485,-500.0,0.00028219,4]
[328672989,1717690242495,-500.0,0.00028219,4]
[328672990,1717690242504,-784.1,0.00028219,4]
[328672991,1717690242514,-500.0,0.00028219,4]
[328672992,1717690242524,-515.35,0.00028219,4]
[328672993,1717690242534,-500.0,0.00028219,4]
[328672994,1717690242544,-684.27,0.00028219,4]
[328672995,1717690242554,-500.0,0.00028219,4]
[328672996,1717690242563,-600.8,0.00028219,4]
[328672997,1717690242574,-500.0,0.00028219,4]
[328672998,1717690242584,-500.0,0.00028219,4]
[328672999,1717690242593,-556.96,0.00028219,4]
[328673000,1717690242603,-653.12,0.00028219,4]
[328673001,1717690242612,-500.0,0.00028219,4]
[328673002,1717690242622,-500.0,0.00028219,4]
[328673003,1717690242631,-500.0,0.00028219,4]
[328673004,1717690242641,-2244.92,0.00028219,4]
[328673005,1717690242650,-855.12,0.00028219,4]
[328673006,1717690242660,-2461.31,0.00028219,4]
[328673007,1717690242669,-500.0,0.00028219,4]
[328673008,1717690242683,-500.0,0.00028219,4]
[328673009,1717690242693,-500.0,0.00028219,4]
[328673010,1717690242705,-1765.26,0.00028219,4]
[328673011,1717690242715,-500.0,0.00028219,4]
[328673012,1717690242725,-959.41,0.00028219,4]
[328673013,1717690242735,-1577.26,0.00028219,4]
[328673014,1717690242745,-565.64,0.00028219,4]
[328673015,1717690242754,-500.0,0.00028219,4]
[328673016,1717690242767,-500.0,0.00028219,4]
[328673017,1717690242777,-500.0,0.00028219,4]
[328673018,1717690242787,-323.93639237,0.00028219,4]
[328673019,1717690242796,-500.0,0.00028493,4]
[328673020,1717690242806,-500.0,0.00028493,4]
[328673021,1717690242816,-500.0,0.00028493,2]
[328673022,1717690242825,-500.0,0.00028493,4]
[328673023,1717690242835,-500.0,0.00028493,4]
[328673024,1717690242846,-500.0,0.00028493,4]
[328673025,1717690242855,-500.0,0.00028493,4]
[328673026,1717690242865,-500.0,0.00028493,4]
[328673027,1717690242875,-500.0,0.00028493,4]
[328673028,1717690242885,-550.216659,0.00028493,4]
[328673029,1717690242895,-534.58,0.00028493,4]
[328673030,1717690242905,-500.0,0.00028493,4]
[328673031,1717690242915,-500.0,0.00028493,4]
[328673032,1717690242924,-513.77,0.00028493,4]
[328673033,1717690242934,-281.12755437,0.00028493,4]
[328673034,1717690242943,-500.0,0.00028493,4]
[328673035,1717690242955,-500.0,0.00028493,4]
[328673036,1717690242965,-500.0,0.00028493,4]
[328673037,1717690242975,-516.72790107,0.00028493,4]
[328673038,1717690242984,-500.0,0.00028493,4]
[328673039,1717690242994,-500.0,0.00028493,4]
[328673040,1717690243004,-588.58,0.00028493,4]
[328673041,1717690243014,-500.0,0.00028493,4]
[328673042,1717690243024,-711.28,0.00028493,4]
[328673043,1717690243034,-941.68,0.00028493,4]
[328673044,1717690243045,-510.4,0.00028493,4]
[328673045,1717690243055,-500.0,0.00028493,4]
[328673046,1717690243065,-813.72,0.00028493,4]
[328673047,1717690243074,-735.93,0.00028493,4]
[328673048,1717690243084,-503.62,0.00028493,4]
[328673049,1717690243094,-500.0,0.00028493,4]
[328673050,1717690243103,-500.0,0.00028493,4]
[328673051,1717690243113,-500.0,0.00028493,4]
[328673052,1717690243123,-500.0,0.00028493,4]
[328673053,1717690243132,-529.81850593,0.00028493,4]
[328673055,1717690243142,-500.0,0.00028493,4]
[328673056,1717690243151,-500.0,0.00028493,4]
[328673058,1717690243160,-724.47,0.00028493,4]
[328673060,1717690243170,-240.02326985,0.00028493,4]
[328673061,1717690243180,-500.0,0.00028493,4]
[328673062,1717690243190,-500.0,0.00028493,4]
[328673063,1717690243201,-500.0,0.00028493,4]
[328673064,1717690243210,-990.45,0.00028493,4]
[328673065,1717690243220,-375.86732821,0.00028493,4]
[328673066,1717690243230,-1073.26,0.00028493,4]
[328673067,1717690243239,-500.0,0.00028493,4]
[328673068,1717690243249,-500.0,0.00028493,4]
[328673070,1717690243259,-500.0,0.00028493,4]
[328673071,1717690243269,-606.04,0.00028493,4]
[328673072,1717690243279,-1067.38,0.00028493,4]
[328673073,1717690243288,-500.0,0.00028493,4]
[328673074,1717690243298,-884.85,0.00028493,4]
[328673075,1717690243307,-1056.24,0.00028493,4]
[328673076,1717690243317,-581.85,0.00028493,4]
[328673077,1717690243328,-500.0,0.00028493,4]
[328673078,1717690243337,-751.58,0.00028493,4]
[328673079,1717690243347,-500.0,0.00028493,4]
[328673080,1717690243356,-500.0,0.00028493,4]
[328673081,1717690243366,-1025.31,0.00028493,4]
[328673083,1717690243375,-620.2,0.00028493,4]
[328673084,1717690243385,-500.0,0.00028493,4]
[328673085,1717690243394,-500.0,0.00028493,4]
[328673086,1717690243404,-784.1,0.00028493,4]
[328673087,1717690243413,-320.56736382,0.00028493,4]
[328673088,1717690243423,-515.35,0.00028493,4]
[328673089,1717690243432,-500.0,0.00028493,4]
[328673090,1717690243441,-684.27,0.00028493,4]
[328673091,1717690243451,-500.0,0.00028493,4]
[328673092,1717690243461,-600.8,0.00028493,4]
[328673093,1717690243470,-500.0,0.00028493,4]
[328673094,1717690243480,-500.0,0.00028493,4]
[328673095,1717690243489,-556.96,0.00028493,4]
[328673096,1717690243499,-653.12,0.00028493,4]
[328673097,1717690243508,-500.0,0.00028493,4]
[328673098,1717690243518,-500.0,0.00028493,4]
[328673099,1717690243528,-500.0,0.00028493,4]
[328673100,1717690243537,-2244.92,0.00028493,4]
[328673101,1717690243547,-855.12,0.00028493,4]
[328673102,1717690243556,-2461.31,0.00028493,4]
[328673103,1717690243566,-500.0,0.00028493,4]
[328673104,1717690243576,-500.0,0.00028493,4]
[328673105,1717690243585,-500.0,0.00028493,4]
[328673106,1717690243595,-1765.26,0.00028493,4]
[328673107,1717690243604,-500.0,0.00028493,4]
[328673108,1717690243614,-959.41,0.00028493,4]
[328673109,1717690243624,-1577.26,0.00028493,4]
[328673110,1717690243634,-565.64,0.00028493,4]
[328673111,1717690243643,-500.0,0.00028493,4]
[328673112,1717690243652,-500.0,0.00028493,4]
[328673113,1717690243662,-500.0,0.00028493,4]
[328673114,1717690243672,-151.0,0.00028708,4]
[328673115,1717690243686,-500.0,0.00028767,4]
[328673116,1717690243695,-500.0,0.00028767,4]
[328673117,1717690243707,-500.0,0.00028767,2]
[328673118,1717690243718,-500.0,0.00028767,4]
[328673119,1717690243727,-500.0,0.00028767,4]
[328673121,1717690243737,-500.0,0.00028767,4]
[328673123,1717690243747,-500.0,0.00028767,4]
[328673125,1717690243757,-500.0,0.00028767,4]
[328673127,1717690243768,-500.0,0.00028767,4]
[328673129,1717690243778,-534.58,0.00028767,4]
[328673131,1717690243787,-500.0,0.00028767,4]
[328673133,1717690243796,-359.47294639,0.00028767,4]
[328673135,1717690243805,-513.77,0.00028767,4]
[328673137,1717690243815,-500.0,0.00028767,4]
[328673139,1717690243824,-500.0,0.00028767,4]
[328673141,1717690243834,-500.0,0.00028767,4]
[328673143,1717690243843,-500.0,0.00028767,4]
[328673146,1717690243852,-500.0,0.00028767,4]
[328673148,1717690243862,-588.58,0.00028767,4]
[328673150,1717690243871,-500.0,0.00028767,4]
[328673152,1717690243881,-711.28,0.00028767,4]
[328673154,1717690243890,-941.68,0.00028767,4]
[328673156,1717690243900,-510.4,0.00028767,4]
[328673158,1717690243909,-500.0,0.00028767,4]
[328673160,1717690243919,-813.72,0.00028767,4]
[328673162,1717690243928,-735.93,0.00028767,4]
[328673164,1717690243937,-503.62,0.00028767,4]
[328673166,1717690243946,-500.0,0.00028767,4]
[328673168,1717690243957,-500.0,0.00028767,4]
[328673170,1717690243967,-500.0,0.00028767,4]
[328673172,1717690243977,-500.0,0.00028767,4]
[328673174,1717690243987,-500.0,0.00028767,4]
[328673176,1717690243996,-500.0,0.00028767,4]
[328673178,1717690244005,-724.47,0.00028767,4]
[328673180,1717690244014,-500.0,0.00028767,4]
[328673182,1717690244023,-500.0,0.00028767,4]
[328673184,1717690244032,-500.0,0.00028767,4]
[328673186,1717690244041,-990.45,0.00028767,4]
[328673188,1717690244050,-1073.26,0.00028767,4]
[328673190,1717690244059,-500.0,0.00028767,4]
[328673192,1717690244069,-500.0,0.00028767,4]
[328673194,1717690244079,-500.0,0.00028767,4]
[328673196,1717690244088,-606.04,0.00028767,4]
[328673198,1717690244097,-1067.38,0.00028767,4]
[328673200,1717690244106,-500.0,0.00028767,4]
[328673202,1717690244116,-884.85,0.00028767,4]
[328673205,1717690244126,-1056.24,0.00028767,4]
[328673207,1717690244136,-581.85,0.00028767,4]
[328673209,1717690244145,-500.0,0.00028767,4]
[328673211,1717690244155,-751.58,0.00028767,4]
[328673212,1717690244165,-500.0,0.00028767,4]
[328673214,1717690244174,-500.0,0.00028767,4]